Cogmind - Beta 9.2 @@@ ROGUE MODE // 2019.12.09 @ 10:45:41 Player: Cassie Rose Result: Self-destructed Performance ------------- Evolutions (3) 1500 Regions Visited (5) 1000 Robots Destroyed (81) 405 Value Destroyed (2857) 2857 Prototype IDs (3) 60 Alien Tech Used (0) 0 Bonus (908) 908 TOTAL SCORE: 6730 Bonus ------- High Alert Combat Kills 101 Follower Combat Kills 107 Entered Garrisons 200 Used RIF Installer 500 Cogmind --------- Core Integrity 690/700 Matter 186/300 Energy 150/150 System Corruption 0% Temperature Cool (12) Movement Treading (145) Location -7/Factory Parts ------- > --- POWER (2) -------- Micro Nuclear Core > --- PROPULSION (3) --- Advanced Treads Advanced Treads Advanced Treads > --- UTILITY (6) ------ Improved Heat Sink Advanced Heat Sink High-capacity Storage Unit Improved Signal Interpreter Relay Coupler [Sentry] (2) > --- WEAPON (2) ------- Remote Datajack > --- INVENTORY (12) --- Advanced Treads Combat Airjet High-capacity Battery (400) Hacking Suite Relay Coupler [NC] (31) Relay Coupler [Swarmer] (39) Relay Coupler [Swarmer] (42) Relay Coupler [Grunt] (29) Relay Coupler [Demolisher] (23) Relay Coupler [Hunter] (13) System Backup Module Rocket Launcher Peak State ------------ > --- POWER ------------ Micro Nuclear Core Micro Nuclear Core > --- PROPULSION ------- Advanced Treads Advanced Treads Advanced Treads > --- UTILITY ---------- Improved Heat Sink Advanced Heat Sink High-capacity Storage Unit Advanced Sensor Array Improved Signal Interpreter Relay Coupler [Sentry] > --- WEAPON ----------- Remote Datajack > --- INVENTORY -------- Advanced Treads Combat Airjet High-capacity Battery Hacking Suite Relay Coupler [NC] Relay Coupler [Swarmer] Relay Coupler [Swarmer] Relay Coupler [Grunt] Relay Coupler [Demolisher] Relay Coupler [Hunter] System Backup Module Rocket Launcher [Rating: 42] Favorites ----------- Power Reinforced Ion Engine Engine Reinforced Ion Engine Power Core Micro Nuclear Core Propulsion Light Treads Treads Light Treads Utility High-capacity Storage Unit Device Advanced Heat Sink Storage High-capacity Storage Unit Processor Improved Signal Interpreter Hackware Relay Coupler [Sentry] Protection Medium Armor Plating Weapon Heavy EM Pulse Gun Energy Gun Heavy EM Pulse Gun Energy Cannon EM Pulse Cannon Ballistic Gun Improved Assault Rifle Ballistic Cannon Improved Light Cannon Launcher Grenade Launcher Special Weapon Remote Datajack Build | -11 -10 -9 -8 -8 -7 ------- Run | Scr Mat Mat Mat Gar Fac Slots Evolved 6 | . . 2 2 . 2 Power 1 | . . . 1 . . Propulsion 1 | . . 1 . . . Utility 4 | . . 1 1 . 2 Weapon . | . . . . . . Parts Attached 85 | 7 3 16 28 20 11 Power 15 | 1 . 3 4 5 2 Engine 11 | 1 . 3 4 3 . Core 4 | . . . . 2 2 Reactor . | . . . . . . Propulsion 19 | 2 . 4 7 2 4 Treads 19 | 2 . 4 7 2 4 Leg . | . . . . . . Wheel . | . . . . . . Hover . | . . . . . . Flight . | . . . . . . Utility 28 | 2 1 6 9 6 4 Device 14 | 1 . . 5 5 3 Storage 5 | 1 1 1 2 . . Processor 1 | . . . . 1 . Hackware 1 | . . . . . 1 Protection 7 | . . 5 2 . . Artifact . | . . . . . . Weapon 23 | 2 2 3 8 7 1 Energy Gun 12 | 2 2 2 1 5 . Energy Cannon 1 | . . . 1 . . Ballistic Gun 7 | . . . 5 2 . Ballistic Cannon 1 | . . 1 . . . Launcher 1 | . . . 1 . . Special Weapon 1 | . . . . . 1 Impact Weapon . | . . . . . . Slashing Weapon . | . . . . . . Piercing Weapon . | . . . . . . Special Melee Weapon . | . . . . . . Unidentified Prototypes 3 | . . 1 2 . . Parts Lost 31 | . . 3 9 16 3 Power 4 | . . . . 3 1 Propulsion 6 | . . . 2 4 . Utility 9 | . . 1 4 3 1 Weapon 12 | . . 2 3 6 1 Highest Loss Streak 7 | . . 2 5 7 2 Average Slot Usage (%) 89 | . 100 99 90 83 84 Engine 14 | . 14 11 17 14 5 Core 1 | . . . . 2 9 Treads 20 | . 28 33 22 15 8 Device 18 | . 14 4 13 24 28 Storage 9 | . 14 13 9 9 7 Processor 1 | . . . . 1 7 Protection 4 | . . 15 9 . . Energy Gun 8 | . 28 12 6 5 6 Energy Cannon 1 | . . . 3 1 . Ballistic Gun 6 | . . . 5 9 5 Ballistic Cannon 1 | . . 8 1 . . Naked Turns . | . . . . . . Heaviest Build 70 | 14 20 37 70 60 55 Greatest Support 66 | 40 40 60 62 62 66 Greatest Overweight (x) 13 | 4 . . 2 13 2 Average Overweight (x) . | . . . . 1 1 Largest Inventory Capacity 12 | 6 8 8 12 12 12 Average Capacity 10 | 5 6 8 11 12 12 Most Carried 12 | 3 8 8 12 12 12 Average Carried 8 | . 6 6 9 8 11 Final Capacity 12 | 6 8 8 12 12 12 Final Carried 12 | 1 8 7 10 12 12 Class Distribution -------------------- 64% | Scavenger-Mutant 33% | Mutant Dominant Class ---------------- Mutant | -10/Materials Scavenger-Mutant | -9/Materials Scavenger-Mutant | -8/Materials Scavenger-Mutant | -8/Garrison Scavenger-Mutant | -7/Factory Resources | -11 -10 -9 -8 -8 -7 ----------- Run | Scr Mat Mat Mat Gar Fac Matter Collected 1361 | 270 30 220 557 284 . Remotely . | . . . . . . Salvage Created 2959 | 178 238 658 1126 759 . Parts 160 | 16 17 33 50 44 . Haulers Intercepted 3 | . 2 . 1 . . Recyclers Shooed . | . . . . . . Parts Field Recycled . | . . . . . . Retrieved Matter . | . . . . . . Parts Self-Destructed . | . . . . . . Prevented . | . . . . . . Kills | -11 -10 -9 -8 -8 -7 ------- Run | Scr Mat Mat Mat Gar Fac Combat Hostiles Destroyed 56 | . 3 14 17 22 . Guns 32 | . 1 5 8 18 . Cannons 15 | . . 7 6 2 . AOE 7 | . 2 2 2 1 . Classes Destroyed 15 | 3 4 5 1 2 . Worker 4 | 1 2 . 1 . . Builder 2 | . 2 . . . . Tunneler 6 | 5 . 1 . . . Hauler 3 | . 2 . 1 . . Recycler 5 | 1 . 1 3 . . Operator 2 | . 1 . 1 . . Watcher 3 | . . 1 2 . . Swarmer 14 | . . 4 . 10 . Grunt 26 | . 3 6 12 5 . Brawler 4 | . . 1 1 2 . Duelist 1 | . . 1 . . . Protector 1 | . . . . 1 . Sentry 8 | . . 2 3 3 . Demolisher 1 | . . . . 1 . Hunter 1 | . . . 1 . . Best Kill Streak 6 | 2 6 5 5 6 . Combat Bots Only 6 | . 2 4 5 6 . Max Kills in Single Turn 3 | 1 3 3 2 1 . Gunslinging . | . . . . . . Exploded 2 | . 1 2 1 1 . Melee . | . . . . . . Uniques/NPCs Destroyed . | . . . . . . Combat | -11 -10 -9 -8 -8 -7 -------- Run | Scr Mat Mat Mat Gar Fac Damage Taken 4836 | . 23 1181 1680 1733 219 Core 698 | . . 203 199 286 10 Absorbed by Shields . | . . . . . . Core Remaining (%) 65 | 100 100 49 . 11 . Volleys Fired 230 | 22 10 36 74 86 2 Largest 2 | 2 2 2 2 2 1 Hottest 126 | 100 90 90 124 126 30 Shots Fired 434 | 44 20 68 140 160 2 Gun 344 | 44 20 43 105 132 . Cannon 85 | . . 25 32 28 . Launcher 3 | . . . 3 . . Special 2 | . . . . . 2 Kinetic 157 | . . 25 76 56 . Thermal 127 | 44 . . 18 65 . Explosive 3 | . . . 3 . . Electromagnetic 145 | . 20 43 43 39 . Robot Hit Streak 26 | 8 3 9 26 19 4 Robot Miss Streak 7 | 3 2 3 7 3 1 Penetration Max . | . . . . . . Secondary Targets 2 | . . 1 . 1 . Max Gunslinging Chain 1 | . . 1 . 1 . Shots Hit Robots 296 | 28 10 50 104 103 1 Core Hits 124 | 8 9 23 43 41 . Critical Hits 2 | . . 1 1 . . Critical Kills . | . . . . . . Critical Parts Destroyed 2 | . . 1 1 . . Melee Attacks . | . . . . . . Impact . | . . . . . . Slashing . | . . . . . . Piercing . | . . . . . . Sneak Attacks . | . . . . . . Combat Hostiles . | . . . . . . Follow-up Attacks . | . . . . . . Damage Inflicted 6358 | 333 917 1059 2330 1719 . Guns 3718 | 333 133 548 1396 1308 . Cannons 1346 | . . 372 641 333 . Explosions 1294 | . 784 139 293 78 . Melee . | . . . . . . Ramming . | . . . . . . Kinetic 1657 | . . 372 915 370 . Thermal 1748 | 333 44 139 337 895 . Explosive 996 | . 740 . 256 . . Electromagnetic 1957 | . 133 548 822 454 . Impact . | . . . . . . Slashing . | . . . . . . Piercing . | . . . . . . Highest Corruption . | . . . . . . Average Corruption . | . . . . . . Corruption Purged . | . . . . . . Overload Shots . | . . . . . . Overflow Damage 198 | . 129 . 69 . . Projectiles 69 | . . . 69 . . Explosions 129 | . 129 . . . . Melee . | . . . . . . Knockbacks 5 | . . 4 1 . . Impact . | . . . . . . Kinetic 5 | . . 4 1 . . Secondary . | . . . . . . Self-Inflicted Damage 189 | . . 34 129 26 . Shots 6 | . . 1 4 1 . Rammed . | . . . . . . Targets Rammed . | . . . . . . Kicked . | . . . . . . Crushed . | . . . . . . Highest Temperature 649 | 195 66 460 515 649 . Average Temperature 163 | 62 29 164 204 199 . Received Heat Transfer 1629 | . 12 384 729 441 63 Effects 44 | . . 7 24 13 . Shutdowns 14 | . . 2 5 7 . Energy Bleed 5 | . . 1 3 1 . Interference 12 | . . 3 7 2 . Matter Decay 4 | . . . 4 . . Short Circuit 3 | . . . 2 1 . Damage (minor) 5 | . . 1 2 2 . Damage (major) 1 | . . . 1 . . Siege Activations . | . . . . . . Robots Corrupted 2 | . . . 1 1 . Combat Hostiles 2 | . . . 1 1 . Parts Fried 9 | . . 2 4 3 . Impact Corruptions . | . . . . . . Robots Melted . | . . . . . . Combat Hostiles . | . . . . . . Parts Melted 5 | 1 . . . 4 . Heat Transferred 3360 | 999 50 150 605 1556 . Parts Sabotaged . | . . . . . . Parts Stolen . | . . . . . . Parts Stripped . | . . . . . . Power Chain Reactions 6 | . 1 2 1 2 . Missiles Intercepted . | . . . . . . Alert | -11 -10 -9 -8 -8 -7 ------- Run | Scr Mat Mat Mat Gar Fac Peak Influence 803 | 35 276 483 309 803 480 Average Influence 294 | 15 129 299 94 490 426 Maximum Alert Level 3 | . 1 2 1 3 2 Low Security (%) 43 | 100 63 17 93 10 . Level 1 21 | . 36 54 6 27 . Level 2 31 | . . 28 . 53 100 Level 3 2 | . . . . 7 . Level 4 . | . . . . . . Level 5 . | . . . . . . High Security . | . . . . . . Max Security . | . . . . . . Squads Dispatched 7 | . 1 2 1 . 3 Investigation 1 | . 1 . . . . Extermination . | . . . . . . Reinforcement 2 | . . 2 . . . Assault 1 | . . . . . 1 Garrison 3 | . . . 1 . 2 Intercept . | . . . . . . Construction Impeded . | . . . . . . Haulers Reinforced . | . . . . . . Stealth | -11 -10 -9 -8 -8 -7 --------- Run | Scr Mat Mat Mat Gar Fac Distress Signals 2 | . . 2 . . . Communications Jammed . | . . . . . . Distress Signals . | . . . . . . Times Spotted 83 | . 3 21 26 25 8 Peak Tracking Total 7 | . 2 7 6 6 5 Tactical Retreats 8 | . . 1 5 2 . Traps | -11 -10 -9 -8 -8 -7 ------- Run | Scr Mat Mat Mat Gar Fac Traps Triggered 4 | . 1 . . 3 . Indirectly . | . . . . . . Trap Hack Attempts . | . . . . . . Triggered . | . . . . . . Disarmed . | . . . . . . Reprogrammed . | . . . . . . Reused . | . . . . . . Traps Extracted . | . . . . . . Installed . | . . . . . . Triggered 1 | . . . 1 . . Machines | -11 -10 -9 -8 -8 -7 ---------- Run | Scr Mat Mat Mat Gar Fac Machines Disabled 13 | . 9 . 1 3 . Max in Single Turn 6 | . 6 . 1 1 . Garrison Access 1 | . . . . . 1 Garrison Relay 3 | . . . . 3 . Machines Sabotaged . | . . . . . . Garrisons Compromised . | . . . . . . Overloaded Fab Kills . | . . . . . . Fab Network Shutdowns . | . . . . . . Hacking | -11 -10 -9 -8 -8 -7 --------- Run | Scr Mat Mat Mat Gar Fac Machines Accessed 4 | . . . 2 . 2 Terminals 1 | . . . 1 . . Fabricators . | . . . . . . Repair Stations 1 | . . . . . 1 Recycling Units . | . . . . . . Scanalyzers . | . . . . . . Garrison Access 2 | . . . 1 . 1 Total Hacks 5 | . . . 2 . 3 Successful 2 | . . . 1 . 1 Failed 3 | . . . 1 . 2 Catastrophic . | . . . . . . Database Lockouts . | . . . . . . Manual . | . . . . . . Terminals 1 | . . . 1 . . Fabricators . | . . . . . . Repair Stations 2 | . . . . . 2 Recycling Units . | . . . . . . Scanalyzers . | . . . . . . Garrison Access 2 | . . . 1 . 1 Terminal Hacks . | . . . . . . Fabricator Hacks . | . . . . . . Repair Station Hacks . | . . . . . . Recycling Unit Hacks . | . . . . . . Scanalyzer . | . . . . . . Garrison Access Hacks 2 | . . . 1 . 1 Unlock Access 2 | . . . 1 . 1 Unauthorized Hacks . | . . . . . . Terminals . | . . . . . . Fabricators . | . . . . . . Repair Stations . | . . . . . . Recycling Units . | . . . . . . Scanalyzers . | . . . . . . Garrison Access . | . . . . . . Data Cores Recovered 1 | . . . 1 . . Used . | . . . . . . Hacking Detections 2 | . . . 1 . 1 Full Trace Events . | . . . . . . Feedback Events . | . . . . . . Feedback Blocked . | . . . . . . Robot Schematics Acquired . | . . . . . . Robots Built . | . . . . . . Matter . | . . . . . . Time . | . . . . . . Total Robot Build Rating . | . . . . . . Part Schematics Acquired . | . . . . . . Parts Built . | . . . . . . Matter . | . . . . . . Time . | . . . . . . Total Part Build Rating . | . . . . . . Parts Repaired . | . . . . . . Time . | . . . . . . Parts Recycled . | . . . . . . Recycled Matter . | . . . . . . Retrieved Matter . | . . . . . . Retrieved Components . | . . . . . . Parts Scanalyzed . | . . . . . . Part Schematics Acquired . | . . . . . . Parts Damaged . | . . . . . . Bothacking | -11 -10 -9 -8 -8 -7 ------------ Run | Scr Mat Mat Mat Gar Fac Used RIF Installer 1 | . . . . 1 . Robots Hacked 2 | . . . . . 2 Non-combat . | . . . . . . Combat 2 | . . . . . 2 Robot Hacks Applied 2 | . . . . . 2 overwrite_iff 1 | . . . . . 1 formatsys_high 1 | . . . . . 1 Relay Couplers Released 14 | . . . . 13 1 Machine Destruction 14 | . . . . 13 1 Attached 1 | . . . . . 1 Robots Rewired . | . . . . . . Allies Hacked . | . . . . . . Hacks Repelled . | . . . . . . Allies | -11 -10 -9 -8 -8 -7 -------- Run | Scr Mat Mat Mat Gar Fac Total Allies 2 | . . . . . 2 Largest Group 1 | . . . . . 1 Highest-Rated Group 32 | . . . . . 32 Highest-Rated Ally 32 | . . . . . 32 Total Orders . | . . . . . . Ally Attacks 8 | . . . . . 8 Total Damage 287 | . . . . . 287 Kills 3 | . . . . . 3 Allies Corrupted . | . . . . . . Allies Melted . | . . . . . . Intel | -11 -10 -9 -8 -8 -7 ------- Run | Scr Mat Mat Mat Gar Fac Robot Analysis Total . | . . . . . . Derelict Logs Recovered . | . . . . . . Drone Launches . | . . . . . . Drone Recoveries . | . . . . . . Exploration | -11 -10 -9 -8 -8 -7 ------------- Run | Scr Mat Mat Mat Gar Fac Turns Passed 4197 | 240 316 489 1216 1603 333 Spaces Moved 1755 | 102 166 182 523 662 120 Core 15 | 10 . . . 5 . Treads 1740 | 92 166 182 523 657 120 Legs . | . . . . . . Wheels . | . . . . . . Hover . | . . . . . . Flight . | . . . . . . Fastest Speed 50 | 50 160 160 155 155 145 Average Speed 176 | 157 160 160 172 188 190 Slowest Speed 700 | 250 160 160 185 700 200 Overloaded Moves . | . . . . . . Propulsion Burnouts . | . . . . . . Robots Hopped . | . . . . . . Cave-ins Triggered . | . . . . . . Exploration Rate (%) 32 | 5 38 22 47 81 3 Regions Visited 5 Branch Regions . Pre-discovered Areas . | . . . . . . Known Exits Taken 1 | . . . 1 . . Unknown Exits Taken 3 | 1 1 1 . . . Scrap Searched . | . . . . . . Spaces Dug . | . . . . . . Terrain Destroyed 65 | . 30 6 18 11 . Melee . | . . . . . . Projectile 1 | . . 1 . . . AOE 64 | . 30 5 18 11 . Actions | -11 -10 -9 -8 -8 -7 --------- Run | Scr Mat Mat Mat Gar Fac Total 2476 | 138 198 312 723 881 224 Wait 273 | . 6 57 50 81 79 Move 1751 | 101 165 181 523 661 120 Hop . | . . . . . . Pick Up 85 | 8 10 12 29 21 5 Fast Attach 3 | . . . . . 3 Attach 45 | 7 . 6 13 16 3 Detach 2 | . . 1 1 . . Swap 37 | . 3 10 15 4 5 Drop 44 | . 4 9 18 6 7 Fire 230 | 22 10 36 74 86 2 Melee . | . . . . . . Ram . | . . . . . . Kick . | . . . . . . Crush . | . . . . . . Escape Stasis 6 | . . . . 6 . Rewire . | . . . . . . Trap . | . . . . . . Miscellaneous . | . . . . . . Route ------- -11/Scrapyard -10/Materials -9/Materials -8/Materials (discovered 3 exits: *Fac x2 / Gar) -8/Garrison (discovered 3 exits: *Fac x3) -7/Factory History --------- Turn | Location | Event 17 | -11/Scrapyard | Discovered new exit (range 15) 241 | -11/Scrapyard | Entered Materials 314 | -10/Materials | Build established: Mutant 464 | -10/Materials | Discovered new exit (range 16) 557 | -10/Materials | Entered another Materials area 557 | -9/Materials | Evolved 2 slots: Propulsion x1, Utility x1 859 | -9/Materials | Core integrity fell below 50% 1022 | -9/Materials | Discovered new exit (range 16) 1046 | -9/Materials | Entered another Materials area 1046 | -8/Materials | Evolved 2 slots: Power x1, Utility x1 1466 | -8/Materials | Discovered new exit (range 3) 1571 | -8/Materials | Build established: Scavenger-Mutant 1714 | -8/Materials | Lost 5 parts (1n3u1w) 1929 | -8/Materials | Build established: Mutant 2001 | -8/Materials | Discovered new exit (range 10) 2216 | -8/Materials | Garrison activated, responded to threat 2262 | -8/Materials | Identified exit to Garrison 2262 | -8/Materials | Entered Garrison 2282 | -8/Garrison | Build established: Scavenger-Mutant 2324 | -8/Garrison | Triggered checkpoint 2477 | -8/Garrison | Core integrity fell below 50% 2520 | -8/Garrison | Lost 3 parts (1n1u1w) 2544 | -8/Garrison | Triggered checkpoint 2614 | -8/Garrison | Lost 7 parts (1p2n1u3w) 2646 | -8/Garrison | Triggered checkpoint 2701 | -8/Garrison | Discovered new exit (range 8) 2784 | -8/Garrison | Triggered checkpoint 2904 | -8/Garrison | Triggered checkpoint 2913 | -8/Garrison | Core integrity fell below 20% 2963 | -8/Garrison | Lost 3 parts (1p1u1w) 3018 | -8/Garrison | Discovered new exit (range 13) 3054 | -8/Garrison | Installed Relay Interface Framework 3114 | -8/Garrison | Triggered checkpoint 3173 | -8/Garrison | Garrison Relay disabled 3401 | -8/Garrison | Garrison Relay disabled 3535 | -8/Garrison | Identified exit to Factory 3604 | -8/Garrison | Triggered checkpoint 3734 | -8/Garrison | Triggered checkpoint 3797 | -8/Garrison | Garrison Relay disabled 3841 | -8/Garrison | Discovered exit to Factory (range 12) 3865 | -8/Garrison | Entered Factory 3865 | -7/Factory | Evolved 2 slots: Utility x2 4183 | -7/Factory | Identified exit to Garrison 4198 | -7/Factory | Self-destructed Last Messages --------------- 04173_ Guardian 4a heat short circuits Imp. Deuterium Engine. 04174_ Guardian 4a heat damages core (-17). 04183_ Connecting with Garrison Access... >>Unlock Access door unlocked. 04183_ EXIT=UNLOCKED: GARRISON 04183_ Jacked Y-54 Guardian... >>overwrite_iff Rewriting IFF filter. 04188_ Dropped Imp. Heat Sink. 04190_ G-47 Trooper destroyed. 04191_ Y-54 Guardian emerges from the garrison. 04192_ Door malfunctions. 04194_ Network quickbooting Y-54 Guardian, ETC: 9. 04195_ Adv. Sensor Array destroyed. 04198_ Fusion Modulator explodes. 04198_ ALERT: Garrison Access compromised, dispatching assault squad. 04198_ Garrison Access disabled. 04198_ Relay Coupler [Hunter] tumbles out of Garrison Access. 04198_ Mic. Nuclear Core destroyed. Map ----- +----------------------------------------------------+ | ?????????????????????????????????????????????????? | | ?????????????????????????????????????????????????? | | ?????????????????????????????????????????????????? | | ?????????????????????????????????????????????????? | | ?????????????????????????????????????????????????? | | ?????????????????????????????????????????????????? | | ?????????????????????????????????????????????????? | | ?????????????????????????????????????????????????? | | ??????????????????????????????????????????????#### | | ????????????????????????????????????????????? | | ?????????????????????????????????????????? ?? | | ???????????????????????????????????? !! ?? | | ???????????????????????????????????# !! ??""^"" | | ???????????????????????????????????# ! """" "" | | ???????????????????????????????????# ^ """" "" | | ????????????##????????????#???????## """" "" | | ???????????? ?????????? ????? """" "" | | ???????????? ?????????? ???? """" "" | | ???????????? ???????? ?? ?? | | ???????????? ??????? ??? ? | | ???????????? ?????? ???? | | ??????????? #####+######+########## ## | | ??????????? k; # #????# # | | ?????????????? r # #????# # | | ?????????????????##;; # """" ###### + | | ?????????????????# ;YY @ ; """" + # | | ?????????????????## ; %=; """" ###### # | | ??????????????????# ; %=; """" #????# # | | ?????????????????#;;; = ;= #????# # | | ??????????????? ;; %; #????# # | | ????????????? ;; * =###########????# # | | ???????????? ;; % #??????????????# # | | ???????????? ## !== #??????????????# + | | ????????????? ?# ! #??????????????# # | | ????????????? ??# #??????????????# ## | | ?????????????? ???#### ###??????????????# #? | | ?????????????? ???????###????????????????# #? | | ??????????????????????????????????????????# #? | | ??????????????????????????????????????????# +? | | ??????????????????????????????????????????? #? | | ??????????????????????????????????????????? ??? | | ?????????????????????????????????????????????????? | | ?????????????????????????????????????????????????? | | ?????????????????????????????????????????????????? | | ?????????????????????????????????????????????????? | | ?????????????????????????????????????????????????? | | ?????????????????????????????????????????????????? | | ?????????????????????????????????????????????????? | | ?????????????????????????????????????????????????? | | ?????????????????????????????????????????????????? | +----------------------------------------------------+ Best States ------------- Heat Dissipation 81 Energy Generation 25 Energy Capacity 650 Matter Stores 300 Matter Capacity 300 Sight Range 16 Robot Scan Range 16 Terrain Scan Range 16 Terrain Scan Density 10 Armor Coverage 450 Weapon Cycling 30 Evasion (%) 40 Recoil Reduction 3 Item Schematics ----------------- None Robot Schematics ------------------ None Fabricated ------------ Nothing Alien Tech Used ----------------- None Achievements -------------- None Challenges ------------ None Game ------ Seed NuclearHypercooledBoosters Manual? 0 Play Time 00:48:59 Cumulative 54.3 hours Start 2019.12.09 @ 09:55:22 End 2019.12.09 @ 10:45:41 Sessions 1 Manual Loads 0 Difficulty Rogue Special Mode None Game No. 83 Rogue 83 Adventurer 0 Explorer 0 Win Type - Total 0 Types 0/0/0/0/0/0/0 Lore% 22 Gallery% 24 Achievement% 23 Wizard Run 0 Options --------- ASCII 0 Keyboard 0 Movement Mouse Keybinds 0 Fullscreen 1 Font 18/SmallcapsGlow Map View 76x50 Tactical HUD 1 Map Filters NONE Filters LOW_CONTRAST(13,24,33)|BRIGHTNESS(120)|SATURATION(80) Steam 1 RUN: bda6ff64-0c5f-4c0c-b43a-1f7a7855ab86